[Event "Titled Tuesday Blitz July 18 Early 2023"]
[White "kiwibobo"]
[Black "Mendez Fortes, Eduardo Jesus"]
[BlackFideId "3502376"]
[WhiteElo "2326"]
[BlackElo "2631"]
[Result "0-1"]
[Round "1"]
[TimeControl "180+2"]
[Date "2023.07.18"]
[WhiteClock "0:00:13"]
[BlackClock "0:00:20"]
[Board "133"]

1. e4 {[%clk 0:02:59]}  c5 {[%clk 0:02:56]} 2. Nf3 {[%clk 0:02:59]}  d6 {[%clk 0:02:56]} 3. d4 {[%clk 0:02:59]}  cxd4 {[%clk 0:02:57]} 4. Nxd4 {[%clk 0:03:00]}  Nf6 {[%clk 0:02:57]} 5. Nc3 {[%clk 0:03:00]}  a6 {[%clk 0:02:58]} 6. Be2 {[%clk 0:03:00]}  e5 {[%clk 0:02:57]} 7. Nb3 {[%clk 0:03:00]}  Be7 {[%clk 0:02:57]} 8. Bg5 {[%clk 0:03:00]}  Be6 {[%clk 0:02:56]} 9. Bxf6 {[%clk 0:03:01]}  Bxf6 {[%clk 0:02:56]} 10. Qd3 {[%clk 0:03:01]}  Nc6 {[%clk 0:02:52]} 11. O-O-O {[%clk 0:03:01]}  Qb6 {[%clk 0:02:51]} 12. Nd5 {[%clk 0:02:42]}  Bxd5 {[%clk 0:02:42]} 13. Qxd5 {[%clk 0:02:42]}  O-O {[%clk 0:02:27]} 14. Qxd6 {[%clk 0:02:23]}  Qxf2 {[%clk 0:02:22]} 15. Bf3 {[%clk 0:02:09]}  Rac8 {[%clk 0:02:16]} 16. Qd2 {[%clk 0:02:04]}  Qb6 {[%clk 0:02:11]} 17. Rhf1 {[%clk 0:01:48]}  Nb4 {[%clk 0:01:52]} 18. Kb1 {[%clk 0:01:15]}  Rxc2 {[%clk 0:00:55]} 19. Qd6 {[%clk 0:01:04]}  Rc6 {[%clk 0:00:55]} 20. Qd2 {[%clk 0:00:59]}  Qb5 {[%clk 0:00:51]} 21. Be2 {[%clk 0:00:46]}  Qa4 {[%clk 0:00:38]} 22. a3 {[%clk 0:00:24]}  Nc2 {[%clk 0:00:20]} 23. Qd5 {[%clk 0:00:19]}  Ne3 {[%clk 0:00:17]} 24. Qd3 {[%clk 0:00:16]}  Nxf1 {[%clk 0:00:17]} 25. Rxf1 {[%clk 0:00:16]}  Qb5 {[%clk 0:00:17]} 26. Qxb5 {[%clk 0:00:16]}  axb5 {[%clk 0:00:18]} 27. Bxb5 {[%clk 0:00:16]}  Rd6 {[%clk 0:00:19]} 28. Bc4 {[%clk 0:00:16]}  Rc8 {[%clk 0:00:19]} 29. Bd5 {[%clk 0:00:16]}  Rc7 {[%clk 0:00:18]} 30. Nd2 {[%clk 0:00:17]}  g6 {[%clk 0:00:18]} 31. Nc4 {[%clk 0:00:17]}  Ra6 {[%clk 0:00:19]} 32. b4 {[%clk 0:00:16]}  Kg7 {[%clk 0:00:19]} 33. b5 {[%clk 0:00:17]}  Ra4 {[%clk 0:00:19]} 34. Kb2 {[%clk 0:00:17]}  Raxc4 {[%clk 0:00:19]} 35. Bxc4 {[%clk 0:00:18]}  Rxc4 {[%clk 0:00:19]} 36. Rd1 {[%clk 0:00:19]}  Rxe4 {[%clk 0:00:19]} 37. Rd7 {[%clk 0:00:20]}  Re2+ {[%clk 0:00:19]} 38. Kb3 {[%clk 0:00:20]}  e4 {[%clk 0:00:19]} 39. Rxb7 {[%clk 0:00:21]}  e3 {[%clk 0:00:20]} 40. Rb8 {[%clk 0:00:21]}  Rd2 {[%clk 0:00:20]} 41. Re8 {[%clk 0:00:22]}  e2 {[%clk 0:00:21]} 42. b6 {[%clk 0:00:22]}  Rb2+ {[%clk 0:00:21]} 43. Kc4 {[%clk 0:00:22]}  Rxb6 {[%clk 0:00:21]} 44. Rxe2 {[%clk 0:00:23]}  Ra6 {[%clk 0:00:22]} 45. Kb3 {[%clk 0:00:23]}  Ra8 {[%clk 0:00:22]} 46. a4 {[%clk 0:00:23]}  Bd4 {[%clk 0:00:22]} 47. Kb4 {[%clk 0:00:23]}  h5 {[%clk 0:00:21]} 48. a5 {[%clk 0:00:21]}  Bg1 {[%clk 0:00:21]} 49. g3 {[%clk 0:00:19]}  f5 {[%clk 0:00:20]} 50. Kb5 {[%clk 0:00:19]}  Kf6 {[%clk 0:00:20]} 51. a6 {[%clk 0:00:20]}  Rb8+ {[%clk 0:00:19]} 52. Kc6 {[%clk 0:00:20]}  Rb1 {[%clk 0:00:19]} 53. Ra2 {[%clk 0:00:19]}  Ba7 {[%clk 0:00:19]} 54. Rd2 {[%clk 0:00:18]}  Rb6+ {[%clk 0:00:19]} 55. Kc7 {[%clk 0:00:17]}  Rxa6 {[%clk 0:00:20]} 56. Kb7 {[%clk 0:00:18]}  Ra1 {[%clk 0:00:20]} 57. h4 {[%clk 0:00:17]}  Bg1 {[%clk 0:00:19]} 58. Rd6+ {[%clk 0:00:17]}  Kg7 {[%clk 0:00:19]} 59. Rd7+ {[%clk 0:00:17]}  Kh6 {[%clk 0:00:20]} 60. Rd3 {[%clk 0:00:18]}  Rb1+ {[%clk 0:00:20]} 61. Kc6 {[%clk 0:00:17]}  Rb4 {[%clk 0:00:19]} 62. Kd6 {[%clk 0:00:17]}  Rg4 {[%clk 0:00:19]} 63. Ke6 {[%clk 0:00:16]}  Bh2 {[%clk 0:00:20]} 64. Kf6 {[%clk 0:00:16]}  Bxg3 {[%clk 0:00:20]} 65. Rd8 {[%clk 0:00:13]}  Bxh4+ {[%clk 0:00:20]} 0-1


[Site "https://www.chess.com"]

[Event "Titled Tuesday Blitz July 18 Early 2023"]
[White "Schwabeneder, Florian"]
[Black "Andreassen, Lars"]
[WhiteFideId "1626191"]
[BlackFideId "1504878"]
[WhiteElo "2630"]
[BlackElo "2322"]
[Result "1-0"]
[Round "1"]
[TimeControl "180+2"]
[Date "2023.07.18"]
[WhiteClock "0:00:23"]
[BlackClock "0:00:02"]
[Board "134"]

1. Nf3 {[%clk 0:02:59]}  d5 {[%clk 0:02:58]} 2. g3 {[%clk 0:02:59]}  Nd7 {[%clk 0:02:57]} 3. Bg2 {[%clk 0:02:57]}  e5 {[%clk 0:02:57]} 4. O-O {[%clk 0:02:57]}  Bd6 {[%clk 0:02:56]} 5. d3 {[%clk 0:02:57]}  f5 {[%clk 0:02:52]} 6. c4 {[%clk 0:02:56]}  c6 {[%clk 0:02:52]} 7. cxd5 {[%clk 0:02:54]}  cxd5 {[%clk 0:02:53]} 8. Nc3 {[%clk 0:02:49]}  Ngf6 {[%clk 0:02:52]} 9. Nh4 {[%clk 0:02:39]}  Nb6 {[%clk 0:02:50]} 10. Bg5 {[%clk 0:02:26]}  d4 {[%clk 0:02:47]} 11. Nd5 {[%clk 0:02:11]}  Nbxd5 {[%clk 0:02:47]} 12. Bxd5 {[%clk 0:02:11]}  h6 {[%clk 0:02:42]} 13. Bxf6 {[%clk 0:02:09]}  Qxf6 {[%clk 0:02:42]} 14. e3 {[%clk 0:02:07]}  dxe3 {[%clk 0:02:04]} 15. fxe3 {[%clk 0:02:06]}  g5 {[%clk 0:01:50]} 16. Qh5+ {[%clk 0:02:03]}  Kd8 {[%clk 0:01:51]} 17. Nxf5 {[%clk 0:01:51]}  Bxf5 {[%clk 0:01:50]} 18. Be4 {[%clk 0:01:33]}  Qg6 {[%clk 0:01:44]} 19. Qxg6 {[%clk 0:01:32]}  Bxg6 {[%clk 0:01:44]} 20. Bxg6 {[%clk 0:01:33]}  Rf8 {[%clk 0:01:37]} 21. Rxf8+ {[%clk 0:01:28]}  Bxf8 {[%clk 0:01:38]} 22. Be4 {[%clk 0:01:28]}  Rb8 {[%clk 0:01:36]} 23. Kf2 {[%clk 0:01:25]}  Bc5 {[%clk 0:01:32]} 24. Ke2 {[%clk 0:01:24]}  b5 {[%clk 0:01:26]} 25. Rf1 {[%clk 0:01:21]}  Ke7 {[%clk 0:01:23]} 26. Rc1 {[%clk 0:01:15]}  Bb6 {[%clk 0:01:20]} 27. Rc6 {[%clk 0:01:14]}  Rh8 {[%clk 0:01:15]} 28. b4 {[%clk 0:01:06]}  h5 {[%clk 0:01:13]} 29. Rg6 {[%clk 0:01:03]}  g4 {[%clk 0:01:02]} 30. Bd5 {[%clk 0:01:03]}  h4 {[%clk 0:00:54]} 31. Rxg4 {[%clk 0:00:59]}  hxg3 {[%clk 0:00:54]} 32. hxg3 {[%clk 0:00:59]}  Rh2+ {[%clk 0:00:54]} 33. Kf3 {[%clk 0:00:59]}  Rb2 {[%clk 0:00:50]} 34. Bb3 {[%clk 0:00:56]}  Rb1 {[%clk 0:00:42]} 35. Rg6 {[%clk 0:00:50]}  Re1 {[%clk 0:00:40]} 36. Re6+ {[%clk 0:00:49]}  Kd7 {[%clk 0:00:39]} 37. Rxe5 {[%clk 0:00:49]}  Rf1+ {[%clk 0:00:33]} 38. Ke2 {[%clk 0:00:45]}  Rg1 {[%clk 0:00:33]} 39. Kf2 {[%clk 0:00:43]}  Rh1 {[%clk 0:00:28]} 40. Rxb5 {[%clk 0:00:42]}  Rh2+ {[%clk 0:00:26]} 41. Kf3 {[%clk 0:00:43]}  Rh1 {[%clk 0:00:25]} 42. d4 {[%clk 0:00:43]}  Rf1+ {[%clk 0:00:19]} 43. Ke4 {[%clk 0:00:42]}  Rg1 {[%clk 0:00:19]} 44. Rg5 {[%clk 0:00:42]}  Bc7 {[%clk 0:00:18]} 45. g4 {[%clk 0:00:42]}  Rg3 {[%clk 0:00:13]} 46. Rg7+ {[%clk 0:00:42]}  Kd6 {[%clk 0:00:13]} 47. g5 {[%clk 0:00:40]}  Bd8 {[%clk 0:00:12]} 48. g6 {[%clk 0:00:38]}  a5 {[%clk 0:00:10]} 49. bxa5 {[%clk 0:00:37]}  Bxa5 {[%clk 0:00:11]} 50. Ra7 {[%clk 0:00:32]}  Bd2 {[%clk 0:00:10]} 51. g7 {[%clk 0:00:23]}  Rxe3+ {[%clk 0:00:08]} 52. Kf5 {[%clk 0:00:24]}  Rg3 {[%clk 0:00:02]} 53. g8=Q {[%clk 0:00:23]} 1-0


[Site "https://www.chess.com"]

[Event "Titled Tuesday Blitz July 18 Early 2023"]
[White "Osinovsky, Stepan"]
[Black "Komov, Roman"]
[WhiteFideId "4157354"]
[BlackFideId "24175714"]
[WhiteElo "2320"]
[BlackElo "2629"]
[Result "0-1"]
[Round "1"]
[TimeControl "180+2"]
[Date "2023.07.18"]
[WhiteClock "0:00:00"]
[BlackClock "0:00:20"]
[Board "135"]

1. e4 {[%clk 0:03:00]}  c5 {[%clk 0:02:59]} 2. Nf3 {[%clk 0:03:01]}  d6 {[%clk 0:02:59]} 3. g3 {[%clk 0:02:57]}  Nc6 {[%clk 0:02:58]} 4. Bg2 {[%clk 0:02:58]}  g6 {[%clk 0:02:57]} 5. O-O {[%clk 0:02:58]}  Bg7 {[%clk 0:02:58]} 6. Re1 {[%clk 0:02:58]}  e5 {[%clk 0:02:58]} 7. c3 {[%clk 0:02:58]}  Nge7 {[%clk 0:02:57]} 8. Na3 {[%clk 0:02:53]}  O-O {[%clk 0:02:55]} 9. Nc2 {[%clk 0:02:53]}  d5 {[%clk 0:02:45]} 10. exd5 {[%clk 0:02:50]}  Nxd5 {[%clk 0:02:46]} 11. d4 {[%clk 0:02:50]}  exd4 {[%clk 0:02:35]} 12. cxd4 {[%clk 0:02:50]}  Ndb4 {[%clk 0:02:07]} 13. Nxb4 {[%clk 0:02:39]}  Nxb4 {[%clk 0:02:08]} 14. dxc5 {[%clk 0:02:34]}  Nd3 {[%clk 0:01:40]} 15. Bg5 {[%clk 0:02:24]}  Qd7 {[%clk 0:01:20]} 16. Re7 {[%clk 0:01:59]}  Qb5 {[%clk 0:01:19]} 17. Bf1 {[%clk 0:01:51]}  Qxb2 {[%clk 0:01:18]} 18. Rb1 {[%clk 0:00:43]}  Qxf2+ {[%clk 0:01:17]} 19. Kh1 {[%clk 0:00:44]}  Bg4 {[%clk 0:01:17]} 20. Be2 {[%clk 0:00:37]}  Bh3 {[%clk 0:00:55]} 21. Nh4 {[%clk 0:00:37]}  Nb2 {[%clk 0:00:43]} 22. Qb3 {[%clk 0:00:16]}  Qxc5 {[%clk 0:00:39]} 23. Nf3 {[%clk 0:00:11]}  Bg4 {[%clk 0:00:35]} 24. Rxb7 {[%clk 0:00:09]}  Bxf3+ {[%clk 0:00:32]} 25. Bxf3 {[%clk 0:00:10]}  Qxg5 {[%clk 0:00:33]} 26. Rxb2 {[%clk 0:00:09]}  Bxb2 {[%clk 0:00:34]} 27. Qxb2 {[%clk 0:00:09]}  Rac8 {[%clk 0:00:29]} 28. Kg2 {[%clk 0:00:08]}  Rfd8 {[%clk 0:00:27]} 29. Be2 {[%clk 0:00:03]}  Rd2 {[%clk 0:00:21]} 30. Qb5 {[%clk 0:00:00]}  Qxb5 {[%clk 0:00:20]} 0-1


[Site "https://www.chess.com"]

[Event "Titled Tuesday Blitz July 18 Early 2023"]
[White "Agibileg, Uurtsaikh"]
[Black "Bendayan Claros, Aaron"]
[WhiteFideId "4901606"]
[BlackFideId "3803392"]
[WhiteElo "2628"]
[BlackElo "2319"]
[Result "1-0"]
[Round "1"]
[TimeControl "180+2"]
[Date "2023.07.18"]
[WhiteClock "0:01:30"]
[BlackClock "0:01:56"]
[Board "136"]

1. d4 {[%clk 0:02:49]}  d5 {[%clk 0:03:00]} 2. c4 {[%clk 0:02:47]}  e6 {[%clk 0:03:00]} 3. Nc3 {[%clk 0:02:47]}  a6 {[%clk 0:02:56]} 4. cxd5 {[%clk 0:02:46]}  exd5 {[%clk 0:02:56]} 5. Bf4 {[%clk 0:02:46]}  Nf6 {[%clk 0:02:56]} 6. Bg5 {[%clk 0:02:47]}  Be6 {[%clk 0:02:49]} 7. e3 {[%clk 0:02:47]}  Nbd7 {[%clk 0:02:48]} 8. Bd3 {[%clk 0:02:48]}  Bd6 {[%clk 0:02:48]} 9. f4 {[%clk 0:02:45]}  h6 {[%clk 0:02:44]} 10. Bh4 {[%clk 0:02:45]}  g5 {[%clk 0:02:41]} 11. fxg5 {[%clk 0:02:45]}  hxg5 {[%clk 0:02:41]} 12. Bxg5 {[%clk 0:02:45]}  Bg3+ {[%clk 0:02:39]} 13. Kd2 {[%clk 0:02:43]}  Rxh2 {[%clk 0:02:39]} 14. Rxh2 {[%clk 0:02:43]}  Bxh2 {[%clk 0:02:39]} 15. Nf3 {[%clk 0:02:44]}  Bd6 {[%clk 0:02:38]} 16. Qh1 {[%clk 0:02:36]}  Qe7 {[%clk 0:02:36]} 17. Qh8+ {[%clk 0:02:36]}  Qf8 {[%clk 0:02:29]} 18. Bxf6 {[%clk 0:02:37]}  Nxf6 {[%clk 0:02:28]} 19. Qxf6 {[%clk 0:02:37]}  Be7 {[%clk 0:02:28]} 20. Qe5 {[%clk 0:02:30]}  O-O-O {[%clk 0:02:28]} 21. Rh1 {[%clk 0:02:24]}  Qg8 {[%clk 0:02:27]} 22. Rg1 {[%clk 0:02:04]}  Bd6 {[%clk 0:02:24]} 23. Qg5 {[%clk 0:02:03]}  Qh8 {[%clk 0:02:22]} 24. Bf5 {[%clk 0:01:50]}  Rg8 {[%clk 0:02:18]} 25. Bxe6+ {[%clk 0:01:50]}  fxe6 {[%clk 0:02:19]} 26. Qh4 {[%clk 0:01:50]}  Qg7 {[%clk 0:02:18]} 27. Qh3 {[%clk 0:01:46]}  Qf6 {[%clk 0:02:11]} 28. Nxd5 {[%clk 0:01:45]}  Qg6 {[%clk 0:02:06]} 29. Ne5 {[%clk 0:01:38]}  Qe8 {[%clk 0:02:01]} 30. Nf6 {[%clk 0:01:29]}  Qb5 {[%clk 0:02:00]} 31. Qxe6+ {[%clk 0:01:29]}  Kb8 {[%clk 0:02:00]} 32. Qxg8+ {[%clk 0:01:30]}  Ka7 {[%clk 0:01:56]} 33. Qb3 {[%clk 0:01:30]} 1-0


[Site "https://www.chess.com"]

[Event "Titled Tuesday Blitz July 18 Early 2023"]
[White "Dwilewicz, Katarzyna"]
[Black "Belov, Alexei"]
[WhiteFideId "1148486"]
[BlackFideId "4128206"]
[WhiteElo "2306"]
[BlackElo "2615"]
[Result "1/2-1/2"]
[Round "1"]
[TimeControl "180+2"]
[Date "2023.07.18"]
[WhiteClock "0:00:04"]
[BlackClock "0:00:13"]
[Board "141"]

1. e4 {[%clk 0:03:00]}  e6 {[%clk 0:02:59]} 2. d4 {[%clk 0:02:59]}  d5 {[%clk 0:02:59]} 3. Nd2 {[%clk 0:03:00]}  Nf6 {[%clk 0:02:58]} 4. e5 {[%clk 0:03:00]}  Nfd7 {[%clk 0:02:58]} 5. Bd3 {[%clk 0:03:01]}  c5 {[%clk 0:02:59]} 6. c3 {[%clk 0:03:01]}  Nc6 {[%clk 0:02:59]} 7. Ne2 {[%clk 0:03:02]}  f6 {[%clk 0:02:59]} 8. Nf4 {[%clk 0:03:00]}  Qe7 {[%clk 0:02:58]} 9. Nf3 {[%clk 0:02:57]}  cxd4 {[%clk 0:02:51]} 10. cxd4 {[%clk 0:02:55]}  fxe5 {[%clk 0:02:50]} 11. Nxe5 {[%clk 0:02:54]}  Ndxe5 {[%clk 0:02:48]} 12. dxe5 {[%clk 0:02:53]}  Nxe5 {[%clk 0:02:48]} 13. Qh5+ {[%clk 0:02:20]}  Nf7 {[%clk 0:02:47]} 14. Bb5+ {[%clk 0:02:11]}  Bd7 {[%clk 0:02:45]} 15. Bxd7+ {[%clk 0:02:12]}  Qxd7 {[%clk 0:02:45]} 16. O-O {[%clk 0:02:12]}  Bd6 {[%clk 0:02:32]} 17. Re1 {[%clk 0:02:01]}  Bxf4 {[%clk 0:02:30]} 18. Bxf4 {[%clk 0:02:02]}  O-O {[%clk 0:02:30]} 19. Re3 {[%clk 0:01:56]}  Rac8 {[%clk 0:01:47]} 20. Rae1 {[%clk 0:01:50]}  Rc6 {[%clk 0:01:40]} 21. Rh3 {[%clk 0:01:37]}  h6 {[%clk 0:01:40]} 22. Rg3 {[%clk 0:01:37]}  d4 {[%clk 0:01:17]} 23. Bxh6 {[%clk 0:01:28]}  Nxh6 {[%clk 0:01:16]} 24. Qxh6 {[%clk 0:01:29]}  e5 {[%clk 0:01:07]} 25. Qg5 {[%clk 0:01:10]}  Rf5 {[%clk 0:00:56]} 26. Qg4 {[%clk 0:00:59]}  d3 {[%clk 0:00:40]} 27. h3 {[%clk 0:00:53]}  d2 {[%clk 0:00:38]} 28. Rd1 {[%clk 0:00:48]}  Rc1 {[%clk 0:00:37]} 29. Re3 {[%clk 0:00:13]}  Qd4 {[%clk 0:00:27]} 30. Qe2 {[%clk 0:00:05]}  Rxd1+ {[%clk 0:00:19]} 31. Qxd1 {[%clk 0:00:05]}  e4 {[%clk 0:00:20]} 32. g3 {[%clk 0:00:03]}  Rc5 {[%clk 0:00:20]} 33. Kg2 {[%clk 0:00:03]}  Rc1 {[%clk 0:00:20]} 34. Qh5 {[%clk 0:00:02]}  Qd7 {[%clk 0:00:14]} 35. Rxe4 {[%clk 0:00:02]}  d1=Q {[%clk 0:00:14]} 36. Re8+ {[%clk 0:00:01]}  Qxe8 {[%clk 0:00:15]} 37. Qxe8+ {[%clk 0:00:02]}  Kh7 {[%clk 0:00:15]} 38. Qe4+ {[%clk 0:00:02]}  Kg8 {[%clk 0:00:15]} 39. Qe8+ {[%clk 0:00:03]}  Kh7 {[%clk 0:00:15]} 40. Qe4+ {[%clk 0:00:03]}  Kh6 {[%clk 0:00:16]} 41. Qe6+ {[%clk 0:00:03]}  g6 {[%clk 0:00:16]} 42. Qe3+ {[%clk 0:00:02]}  Kg7 {[%clk 0:00:16]} 43. Qe7+ {[%clk 0:00:02]}  Kh6 {[%clk 0:00:17]} 44. Qe3+ {[%clk 0:00:03]}  Kg7 {[%clk 0:00:13]} 45. Qe7+ {[%clk 0:00:03]}  Kh6 {[%clk 0:00:13]} 46. Qe3+ {[%clk 0:00:04]} 1/2-1/2


[Site "https://www.chess.com"]

[Event "Titled Tuesday Blitz July 18 Early 2023"]
[White "AndresDelgado77"]
[Black "Colas, Joshua"]
[BlackFideId "2044447"]
[WhiteElo "2303"]
[BlackElo "2608"]
[Result "1-0"]
[Round "1"]
[TimeControl "180+2"]
[Date "2023.07.18"]
[WhiteClock "0:00:51"]
[BlackClock "0:00:25"]
[Board "145"]

1. e4 {[%clk 0:03:00]}  c5 {[%clk 0:02:58]} 2. Nf3 {[%clk 0:03:00]}  e6 {[%clk 0:02:58]} 3. c3 {[%clk 0:03:00]}  Nf6 {[%clk 0:02:58]} 4. Bd3 {[%clk 0:02:59]}  Nc6 {[%clk 0:02:56]} 5. Bc2 {[%clk 0:02:58]}  d5 {[%clk 0:02:56]} 6. e5 {[%clk 0:02:58]}  Nd7 {[%clk 0:02:57]} 7. d4 {[%clk 0:02:58]}  Qb6 {[%clk 0:02:53]} 8. a3 {[%clk 0:02:57]}  Ke7 {[%clk 0:02:45]} 9. O-O {[%clk 0:02:53]}  cxd4 {[%clk 0:02:40]} 10. cxd4 {[%clk 0:02:52]}  f5 {[%clk 0:02:40]} 11. exf6+ {[%clk 0:02:48]}  Nxf6 {[%clk 0:02:40]} 12. Re1 {[%clk 0:02:48]}  Bd7 {[%clk 0:02:36]} 13. Nc3 {[%clk 0:02:46]}  h6 {[%clk 0:02:35]} 14. Na4 {[%clk 0:02:30]}  Qc7 {[%clk 0:02:27]} 15. b4 {[%clk 0:02:25]}  Re8 {[%clk 0:02:27]} 16. Bg6 {[%clk 0:02:23]}  Rd8 {[%clk 0:02:24]} 17. Nc5 {[%clk 0:02:18]}  b6 {[%clk 0:02:23]} 18. Nd3 {[%clk 0:02:11]}  Be8 {[%clk 0:02:16]} 19. Nde5 {[%clk 0:02:09]}  Nxe5 {[%clk 0:02:12]} 20. Nxe5 {[%clk 0:02:08]}  Rg8 {[%clk 0:02:07]} 21. Bf4 {[%clk 0:02:06]}  Qb7 {[%clk 0:02:05]} 22. Rc1 {[%clk 0:02:05]}  Rc8 {[%clk 0:01:58]} 23. Qe2 {[%clk 0:01:53]}  Rd8 {[%clk 0:01:20]} 24. b5 {[%clk 0:01:51]}  Ne4 {[%clk 0:01:13]} 25. f3 {[%clk 0:01:43]}  Bxg6 {[%clk 0:01:06]} 26. Nxg6+ {[%clk 0:01:42]}  Kf6 {[%clk 0:01:03]} 27. Rc7 {[%clk 0:01:27]}  Qxc7 {[%clk 0:00:52]} 28. Bxc7 {[%clk 0:01:27]}  Rd7 {[%clk 0:00:53]} 29. Nxf8 {[%clk 0:01:24]}  Rxc7 {[%clk 0:00:51]} 30. Nh7+ {[%clk 0:01:17]}  Kg6 {[%clk 0:00:50]} 31. fxe4 {[%clk 0:01:13]}  Kxh7 {[%clk 0:00:50]} 32. exd5 {[%clk 0:01:11]}  exd5 {[%clk 0:00:51]} 33. Qd3+ {[%clk 0:01:11]}  Kh8 {[%clk 0:00:51]} 34. Qg6 {[%clk 0:01:10]}  Rf8 {[%clk 0:00:48]} 35. h3 {[%clk 0:01:05]}  Rcf7 {[%clk 0:00:43]} 36. Re8 {[%clk 0:00:56]}  Rf1+ {[%clk 0:00:27]} 37. Kh2 {[%clk 0:00:56]}  Rf6 {[%clk 0:00:27]} 38. Rxf8+ {[%clk 0:00:54]}  Rxf8 {[%clk 0:00:28]} 39. Qd6 {[%clk 0:00:53]}  Rf5 {[%clk 0:00:25]} 40. Qb8+ {[%clk 0:00:51]} 1-0


[Site "https://www.chess.com"]

[Event "Titled Tuesday Blitz July 18 Early 2023"]
[White "Frolyanov, Dmitry"]
[Black "Cardozo Munar, Carlos Eduardo"]
[WhiteFideId "4151976"]
[BlackFideId "4409477"]
[WhiteElo "2607"]
[BlackElo "2302"]
[Result "1-0"]
[Round "1"]
[TimeControl "180+2"]
[Date "2023.07.18"]
[WhiteClock "0:00:29"]
[BlackClock "0:00:21"]
[Board "146"]

1. d4 {[%clk 0:02:58]}  d5 {[%clk 0:02:59]} 2. c4 {[%clk 0:02:57]}  e5 {[%clk 0:02:59]} 3. dxe5 {[%clk 0:02:57]}  d4 {[%clk 0:02:59]} 4. Nf3 {[%clk 0:02:57]}  Nc6 {[%clk 0:02:58]} 5. g3 {[%clk 0:02:57]}  Nge7 {[%clk 0:02:58]} 6. Bg2 {[%clk 0:02:56]}  Ng6 {[%clk 0:02:58]} 7. O-O {[%clk 0:02:56]}  Ngxe5 {[%clk 0:02:58]} 8. Nxe5 {[%clk 0:02:56]}  Nxe5 {[%clk 0:02:59]} 9. Na3 {[%clk 0:02:56]}  Bxa3 {[%clk 0:02:57]} 10. Qa4+ {[%clk 0:02:55]}  Bd7 {[%clk 0:02:51]} 11. Qxa3 {[%clk 0:02:53]}  Bc6 {[%clk 0:02:50]} 12. Qc5 {[%clk 0:02:44]}  Qe7 {[%clk 0:02:38]} 13. Qxd4 {[%clk 0:02:33]}  Bxg2 {[%clk 0:02:38]} 14. Kxg2 {[%clk 0:02:34]}  Rd8 {[%clk 0:02:33]} 15. Qc3 {[%clk 0:02:31]}  O-O {[%clk 0:02:22]} 16. b3 {[%clk 0:02:30]}  Rfe8 {[%clk 0:02:07]} 17. Bb2 {[%clk 0:02:29]}  f6 {[%clk 0:02:06]} 18. Rad1 {[%clk 0:02:27]}  Ng4 {[%clk 0:02:05]} 19. Rxd8 {[%clk 0:01:56]}  Rxd8 {[%clk 0:02:02]} 20. Qf3 {[%clk 0:01:55]}  Rd2 {[%clk 0:01:49]} 21. Qxg4 {[%clk 0:01:40]}  Rxb2 {[%clk 0:01:49]} 22. Rd1 {[%clk 0:01:35]}  Qxe2 {[%clk 0:01:04]} 23. Rd8+ {[%clk 0:01:27]}  Kf7 {[%clk 0:01:03]} 24. Qf5 {[%clk 0:01:07]}  Rd2 {[%clk 0:00:52]} 25. Rd5 {[%clk 0:00:40]}  c6 {[%clk 0:00:36]} 26. Qd7+ {[%clk 0:00:37]}  Kg6 {[%clk 0:00:32]} 27. Rxd2 {[%clk 0:00:37]}  Qe4+ {[%clk 0:00:32]} 28. Kh3 {[%clk 0:00:31]}  h5 {[%clk 0:00:21]} 29. Qd3 {[%clk 0:00:29]} 1-0


[Site "https://www.chess.com"]

[Event "Titled Tuesday Blitz July 18 Early 2023"]
[White "Holtel, Jasper"]
[Black "brm72"]
[WhiteFideId "12956376"]
[WhiteElo "2300"]
[BlackElo "2607"]
[Result "1/2-1/2"]
[Round "1"]
[TimeControl "180+2"]
[Date "2023.07.18"]
[WhiteClock "0:00:30"]
[BlackClock "0:00:31"]
[Board "147"]

1. e4 {[%clk 0:02:54]}  c6 {[%clk 0:02:59]} 2. Nf3 {[%clk 0:02:54]}  d5 {[%clk 0:03:00]} 3. Nc3 {[%clk 0:02:54]}  dxe4 {[%clk 0:03:01]} 4. Nxe4 {[%clk 0:02:55]}  Nf6 {[%clk 0:03:02]} 5. Qe2 {[%clk 0:02:55]}  Nxe4 {[%clk 0:03:01]} 6. Qxe4 {[%clk 0:02:56]}  Nd7 {[%clk 0:03:02]} 7. d4 {[%clk 0:02:56]}  Nf6 {[%clk 0:03:02]} 8. Qf4 {[%clk 0:02:57]}  Bg4 {[%clk 0:02:53]} 9. c3 {[%clk 0:02:53]}  e6 {[%clk 0:02:51]} 10. Ne5 {[%clk 0:02:51]}  Bh5 {[%clk 0:02:51]} 11. Bd3 {[%clk 0:02:46]}  Bd6 {[%clk 0:02:49]} 12. O-O {[%clk 0:02:44]}  Qc7 {[%clk 0:02:48]} 13. Qe3 {[%clk 0:02:42]}  Bg6 {[%clk 0:02:46]} 14. f4 {[%clk 0:02:11]}  O-O-O {[%clk 0:02:29]} 15. a4 {[%clk 0:02:05]}  Nd5 {[%clk 0:02:28]} 16. Qe2 {[%clk 0:02:02]}  Bxd3 {[%clk 0:02:27]} 17. Qxd3 {[%clk 0:02:00]}  f6 {[%clk 0:02:26]} 18. Nf3 {[%clk 0:01:46]}  Nxf4 {[%clk 0:02:24]} 19. Bxf4 {[%clk 0:01:42]}  Bxf4 {[%clk 0:02:25]} 20. a5 {[%clk 0:01:39]}  e5 {[%clk 0:02:22]} 21. a6 {[%clk 0:01:34]}  b6 {[%clk 0:02:18]} 22. Rae1 {[%clk 0:01:24]}  exd4 {[%clk 0:02:15]} 23. Nxd4 {[%clk 0:01:22]}  Bxh2+ {[%clk 0:02:11]} 24. Kh1 {[%clk 0:01:21]}  Be5 {[%clk 0:02:01]} 25. Qf5+ {[%clk 0:01:09]}  Qd7 {[%clk 0:01:59]} 26. Nxc6 {[%clk 0:01:09]}  Qxf5 {[%clk 0:01:58]} 27. Rxf5 {[%clk 0:01:10]}  Rd7 {[%clk 0:01:50]} 28. Nxe5 {[%clk 0:01:04]}  fxe5 {[%clk 0:01:51]} 29. Rfxe5 {[%clk 0:01:03]}  Rf8 {[%clk 0:01:50]} 30. R5e4 {[%clk 0:00:56]}  Rf2 {[%clk 0:01:39]} 31. R1e2 {[%clk 0:00:47]}  Rxe2 {[%clk 0:01:34]} 32. Rxe2 {[%clk 0:00:48]}  Kc7 {[%clk 0:01:34]} 33. Re8 {[%clk 0:00:46]}  Kc6 {[%clk 0:01:30]} 34. c4 {[%clk 0:00:43]}  Rc7 {[%clk 0:01:00]} 35. b4 {[%clk 0:00:35]}  Kd6 {[%clk 0:01:00]} 36. Re4 {[%clk 0:00:34]}  Rf7 {[%clk 0:00:54]} 37. Kg1 {[%clk 0:00:33]}  g6 {[%clk 0:00:48]} 38. Rd4+ {[%clk 0:00:31]}  Kc6 {[%clk 0:00:49]} 39. Re4 {[%clk 0:00:30]}  Rd7 {[%clk 0:00:44]} 40. Kf2 {[%clk 0:00:29]}  Rf7+ {[%clk 0:00:32]} 41. Ke3 {[%clk 0:00:29]}  Kd6 {[%clk 0:00:32]} 42. Rd4+ {[%clk 0:00:29]}  Kc6 {[%clk 0:00:32]} 43. Re4 {[%clk 0:00:29]}  Kd6 {[%clk 0:00:32]} 44. Rd4+ {[%clk 0:00:29]}  Kc6 {[%clk 0:00:31]} 45. Re4 {[%clk 0:00:30]} 1/2-1/2


[Site "https://www.chess.com"]